[Event "4NCL Div 1 2024-25"]
[Site "England"]
[Date "2024.11.24"]
[Round "2.26"]
[White "Willow, Jonah B"]
[Black "Waldhausen Gordon, Frederick"]
[Result "1/2-1/2"]
[Annotator "RC"]
[ECO "C70"]
[WhiteElo "2454"]
[BlackElo "2361"]
[PlyCount "172"]
[EventDate "2024.11.23"]
[EventType "team-tourn"]
[EventCountry "ENG"]
[SourceTitle "playchess.com"]
[Source "ChessBase"]
[SourceQuality "1"]
[TimeControl "40/6000+30:3000+30"]

1. e4 {[%emt 0:10:03]} e5 {[%emt 0:10:02]} 2. Nf3 {[%emt 0:00:14]} Nc6 {[%emt 0:00:03]} 3. Bb5 {[%emt 0:00:31]} a6 {[%emt 0:00:04]} 4. Ba4 {[%emt 0:00:05]} Nge7 {[%emt 0:00:06]} 5. Nc3 {[%emt 0:06:05]} d6 {[%emt 0:01:39]} 6. O-O {[%emt 0:01:16]} Ng6 {[%emt 0:00:56]} 7. d4 {[%emt 0:10:01]} b5 {[%emt 0:10:26]} 8. Bb3 {[%emt 0:00:50]} Be7 {[%emt 0:00:44]} 9. dxe5 {[%emt 0:06:34]} Ncxe5 {[%emt 0:04:51]} 10. Nxe5 {[%emt 0:01:45]} dxe5 {[%emt 0:00:24]} 11. Qxd8+ {[%emt 0:09:36]} Bxd8 {[%emt 0:00:47]} 12. Bd5 {[%emt 0:00:18]} Rb8 {[%emt 0:00:51]} 13. Be3 {[%emt 0:00:04]} Ne7 {[%emt 0:09:39]} 14. Ba7 {[%emt 0:02:03]} Nxd5 {[%emt 0:00:05]} 15. Bxb8 {[%emt 0:00:16]} Nxc3 {[%emt 0:01:42]} 16. bxc3 {[%emt 0:00:44]} Kd7 {[%emt 0:01:46]} 17. a4 {[%emt 0:02:56]} Kc6 {[%emt 0:01:03]} 18. axb5+ {[%emt 0:00:24]} axb5 {[%emt 0:00:05]} 19. Ba7 {[%emt 0:01:01]} Bg5 {[%emt 0:02:07]} 20. Rfd1 {[%emt 0:03:40]} Be6 {[%emt 0:01:21]} 21. f3 {[%emt 0:00:33]} Bc4 {[%emt 0:01:55]} 22. Kf2 {[%emt 0:03:09]} Be7 {[%emt 0:01:03]} 23. Be3 {[%emt 0:00:26]} Bd6 {[%emt 0:01:11]} 24. Ra6+ {[%emt 0:00:39]} Kb7 {[%emt 0:00:06]} 25. Ra7+ {[%emt 0:00:17]} Kc6 {[%emt 1:00:04]} 26. Rda1 {[%emt 0:00:37]} f6 {[%emt 0:00:00]} 27. Ra8 {[%emt 0:08:08]} Rxa8 {[%emt 0:00:00]} 28. Rxa8 {[%emt 0:00:04]} h6 {[%emt 0:00:00]} 29. g4 {[%emt 0:04:51]} Kd7 {[%emt 0:00:00]} 30. h4 {[%emt 0:00:34]} Ke6 {[%emt 0:00:00]} 31. Kg3 {[%emt 0:02:46]} Kf7 {[%emt 0:00:00]} 32. Bc1 {[%emt 0:04:16]} Bc5 {[%emt 0:00:00]} 33. Ba3 {[%emt 0:01:15]} Bb6 {[%emt 0:00:00]} 34. Bb4 {[%emt 0:00:46]} Ke6 {[%emt 0:00:00]} 35. Re8+ {[%emt 0:09:39]} Kf7 {[%emt 0:00:00]} 36. Re7+ {[%emt 0:00:15]} Kg8 {[%emt 0:00:00]} 37. g5 {[%emt 0:04:23]} hxg5 {[%emt 0:00:00]} 38. hxg5 {[%emt 0:00:19]} Bf7 {[%emt 0:00:00]} 39. Rd7 {[%emt 0:01:24]} Be6 {[%emt 0:00:00]} 40. Rd8+ {[%emt 0:01:32]} Kf7 {[%emt 0:00:00]} 41. Rf8+ {[%emt 0:53:08]} Kg6 {[%emt 0:11:12]} 42. gxf6 {[%emt 0:00:06]} gxf6 {[%emt 0:00:04]} 43. Be7 {[%emt 0:00:24]} Bf7 {[%emt 0:00:14]} 44. Rb8 {[%emt 0:00:38]} Be6 {[%emt 0:03:04]} 45. Rf8 {[%emt 0:05:27]} Bf7 {[%emt 0:00:31]} 46. f4 {[%emt 0:01:46]} exf4+ {[%emt 0:06:15]} 47. Kxf4 {[%emt 0:00:13]} Ba5 {[%emt 0:03:49]} 48. Bb4 {[%emt 0:00:24]} Bb6 {[%emt 0:00:10]} 49. Ra8 {[%emt 0:00:39]} Bc4 {[%emt 0:02:10]} 50. Ba5 {[%emt 0:01:04]} Bg1 {[%emt 0:00:19]} 51. Kg3 {[%emt 0:01:49]} f5 {[%emt 0:05:04]} 52. exf5+ {[%emt 0:00:00]} Kxf5 {[%emt 0:00:00]} 53. Bxc7 {[%emt 0:00:00]} Ke4 {[%emt 0:00:00]} 54. Re8+ {[%emt 0:00:00]} Kd5 {[%emt 0:00:00]} 55. Rd8+ {[%emt 0:00:00]} Kc6 {[%emt 0:00:00]} 56. Ba5 {[%emt 0:00:00]} Be3 {[%emt 0:00:00]} 57. Bb4 {[%emt 0:00:00]} Kc7 {[%emt 0:00:00]} 58. Rd1 {[%emt 0:00:00]} Kc6 {[%emt 0:00:00]} 59. Kf3 {[%emt 0:00:00]} Bb6 {[%emt 0:00:00]} 60. Rd6+ {[%emt 0:00:00]} Kc7 {[%emt 0:00:00]} 61. Ke4 {[%emt 0:00:00]} Bf2 {[%emt 0:00:00]} 62. Rf6 {[%emt 0:00:00]} Bb6 {[%emt 0:00:00]} 63. Bd6+ {[%emt 0:00:00]} Kb7 {[%emt 0:00:00]} 64. Be5 {[%emt 0:00:00]} Ba2 {[%emt 0:00:00]} 65. Bd4 {[%emt 0:00:00]} Bc7 {[%emt 0:00:00]} 66. Rg6 {[%emt 0:00:00]} Bc4 {[%emt 0:00:00]} 67. Bc5 {[%emt 0:00:00]} Ba2 {[%emt 0:00:00]} 68. Kd4 {[%emt 0:00:00]} Bc4 {[%emt 0:00:00]} 69. Rh6 {[%emt 0:02:17]} Ba2 {[%emt 0:00:00]} 70. Ke4 {[%emt 0:01:01]} Bc4 {[%emt 0:00:00]} 71. Bb4 {[%emt 0:01:47]} Ba2 {[%emt 0:00:00]} 72. Bd6 {[%emt 0:01:32]} Ba5 {[%emt 0:00:00]} 73. Be5 {[%emt 0:02:26]} Bb6 {[%emt 0:00:37]} 74. Bh2 {[%emt 0:00:30]} Bc4 {[%emt 0:00:58]} 75. Ke5 {[%emt 0:00:10]} Bc7+ {[%emt 0:00:32]} 76. Kf6 {[%emt 0:00:05]} Bd8+ {[%emt 0:00:34]} 77. Kg7 {[%emt 0:00:11]} Bb6 {[%emt 0:07:11]} 78. Kf8 {[%emt 0:00:18]} Bd5 {[%emt 0:00:35]} 79. Ke7 {[%emt 0:00:29]} Be4 {[%emt 0:01:16]} 80. Rh5 {[%emt 0:04:18]} Kc6 {[%emt 0:00:37]} 81. Rh6+ {[%emt 0:00:49]} Kb7 {[%emt 0:00:07]} 82. Rf6 {[%emt 0:00:21]} Bxc2 {[%emt 0:01:42]} 83. Kd7 {[%emt 0:00:05]} Bb3 {[%emt 0:01:01]} 84. Rg6 {[%emt 0:00:28]} Ba5 {[%emt 0:01:57]} 85. Bg1 {[%emt 0:01:40]} Ba4 {[%emt 0:01:51]} 86. Kd6 {[%emt 0:03:17]} Bxc3 {[%emt 0:00:25]} 1/2-1/2

[Event "4NCL Div 1 2024-25"]
[Site "England"]
[Date "2024.11.24"]
[Round "2.27"]
[White "Vijayakumar, Rishi"]
[Black "Balaji, Aaravamudhan"]
[Result "1/2-1/2"]
[Annotator "TA"]
[ECO "E90"]
[WhiteElo "2172"]
[BlackElo "2377"]
[PlyCount "131"]
[EventDate "2024.11.23"]
[EventType "team-tourn"]
[EventCountry "ENG"]
[SourceTitle "playchess.com"]
[Source "ChessBase"]
[SourceQuality "1"]
[TimeControl "40/6000+30:3000+30"]

{[%evp 14,131,34,-8,26,12,56,46,45,44,64,63,68,71,74,62,78,78,84,84,98,87,93,97,81,0,27,10,10,2,0,-59,-43,-92,-15,-9,-15,-22,0,0,0,-59,-58,-41,-6,-61,0,0,16,17,8,12,81,66,84,86,129,117,76,29,6,1,70,56,136,0,10,29,202,181,273,39,28,43,25,-6,-7,-8,-8,-14,0,0,0,-14,-14,-14,-14,-14,-14,-14,-14,-14,-14,-14,-14,-14,-14,-47,0,0,0,0,0,0,0,0,0,0,0,0,0,0,0,0,0,0,0,0,0,0]} 1. d4 {[%emt 0:10:12]} Nf6 {[%emt 0:12:23]} 2. c4 {[%emt 0:00:18]} g6 {[%emt 0:00:07]} 3. Nc3 {[%emt 0:01:10]} Bg7 {[%emt 0:00:09]} 4. e4 {[%emt 0:00:16]} d6 {[%emt 0:00:09]} 5. h3 {[%emt 0:00:23]} O-O {[%emt 0:04:11]} 6. Be3 {[%emt 0:00:20]} c5 {[%emt 0:14:57]} 7. Nf3 {[%emt 0:00:22]} Qa5 {[%emt 0:03:48]} 8. Qd2 {[%emt 0:09:16]} a6 {[%emt 0:01:57]} 9. Bd3 {[%emt 0:09:37]} Nfd7 {[%emt 0:05:53]} 10. O-O {[%emt 0:06:31]} Nc6 {[%emt 0:02:05][%cal Rc5d4] White is slightly better.} 11. Be2 {[%emt 0:07:13]} Rb8 {[%emt 0:05:11]} 12. d5 {[%emt 0:08:37]} Nce5 {[%emt 0:10:12]} 13. Nxe5 {[%emt 0:03:56]} Bxe5 {[%emt 0:00:29]} 14. f4 {[%emt 0:01:12]} Bf6 {[%emt 0:07:11]} 15. a4 {[%emt 0:07:55]} Nb6 {[%emt 0:05:52]} 16. Rfc1 {[%emt 0:01:28]} Bd7 {[%emt 0:01:29]} 17. b3 {[%emt 0:02:36]} Na8 {[%emt 0:00:57] [#]} 18. e5 $1 {[%emt 0:05:50]} Bg7 {[%emt 0:05:23]} 19. Ra2 {[%emt 0:10:30]} ({White should play} 19. Bg4 $16 Nb6 20. e6 fxe6 21. dxe6 (21. Bxe6+ Bxe6 22. dxe6 Nc8 $11)) 19... dxe5 $11 {[%emt 0:14:06]} 20. Ne4 {[%emt 0:02:33]} Qxd2 {[%emt 0:02:07]} 21. Rxd2 {[%emt 0:00:03]} b6 {[%emt 0:01:00]} 22. a5 {[%emt 0:11:14]} f5 $15 {[%emt 0:04:57]} 23. Nf2 {[%emt 0:02:37]} (23. Ng5 $15 {is superior.} exf4 24. Bxf4) 23... exf4 {[%emt 0:06:38]} (23... e4 $1 $17 24. d6 (24. axb6 Rfc8 $17) 24... e6 25. axb6 Rfc8) 24. Bxf4 $11 {[%emt 0:00:02]} bxa5 {[%emt 0:00:07]} 25. Bxb8 {[%emt 0:02:01]} Bh6 {[%emt 0:01:07][%cal Bg7h6,Bh6c1,Bc1e3,Be3d4][%mdl 32] Against Bf4} 26. Ra2 {[%emt 0:01:48]} Bxc1 {[%emt 0:00:22]} 27. Ba7 {[%emt 0:01:05] [#]} (27. Bg3 $11) 27... a4 $1 $15 {[%emt 0:00:12]} 28. bxa4 {[%emt 0:00:11]} Be3 {[%emt 0:00:04]} 29. a5 {[%emt 0:01:19]} (29. Rb2 $11) 29... Rc8 {[%emt 0:01:19]} (29... Bd4 $15) 30. Rb2 $11 {[%emt 0:00:47]} Kf7 {[%emt 0:00:29]} 31. Bb8 {[%emt 0:01:18][%mdl 1024] White has compensation.} Ke8 {[%emt 0:00:36]} 32. Kf1 {[%emt 0:01:17]} Kd8 {[%emt 0:00:31]} (32... Bd4 $11 {keeps the balance.} 33. Rb7 Bc3) 33. Nd3 $16 {[%emt 0:00:34]} Bd4 {[%emt 0:00:22]} 34. Rb7 {[%emt 0:00:48]} Ba4 {[%emt 0:00:28]} (34... Nc7 $2 35. Ba7 $18) 35. Nf4 {[%emt 0:01:09]} (35. Be5 Bxe5 36. Nxe5 Rc7 37. Rb8+ Rc8 38. Rxc8+ Kxc8 $18) 35... Bd7 {[%emt 0:00:26]} 36. Ne6+ {[%emt 0:01:10]} (36. Bd1 $16 {[%cal Ob7d7] aiming for Rxd7+!} Nc7 37. Ba4) 36... Bxe6 $11 {[%emt 0:00:16]} 37. dxe6 {[%emt 0:00:01]} Bc3 {[%emt 0:00:53]} ({Black should try} 37... Nc7 $11) 38. Bd1 {[%emt 0:01:13]} Bxa5 {[%emt 0:00:31] [#]} (38... Nc7 $1 $14) 39. Bd6 $1 {[%emt 0:00:31][%mdl 512] White has more active pieces.} Bc7 {[%emt 0:00:34]} (39... exd6 40. e7+ (40. Rxh7 Rc7 $17) 40... Ke8 41. Ba4+) (39... Nc7 40. Bxc5) 40. Bxc5 {[%emt 0:00:35] Threatens to win with Bf3.} a5 $2 {[%emt 0:00:30]} (40... Rb8 $11 {and Black is okay.} 41. Ra7 Nb6) 41. Bf3 {[%emt 0:23:15]} Ke8 {[%emt 0:28:08]} (41... a4 $142 42. Ke2 (42. Bc6 a3 $18) 42... Ke8) 42. Ra7 $2 {[%emt 0:19:38]} ({Only move:} 42. Bc6+ $18 Kf8 43. Ba3) 42... Nb6 $14 {[%emt 0:11:12]} 43. Bc6+ {[%emt 0:05:32]} ({Reject} 43. Rxa5 Nxc4 44. Ra4 Nd2+ 45. Kf2 Nxf3 46. Kxf3 Kf8 $17) 43... Kd8 {[%emt 0:04:33]} 44. Bb5 {[%emt 0:01:51][%cal Oc5b6] Black must now prevent Bxb6! A strong pair of Bishops.} Rb8 {[%emt 0:03:26]} 45. Bxb6 $1 {[%emt 0:00:07]} (45. Rxa5 $2 {too greedy.} Nxc4 46. Bxe7+ Kxe7 $19) 45... Rxb6 {[%emt 0:01:47]} 46. Rxa5 $11 {[%emt 0:00:09][%mdl 4096] Endgame. KRB-KRB} Kc8 {[%emt 0:00:30]} (46... Rxe6 $2 {is the wrong capture.} 47. Ra8+ $18) 47. Bd7+ {[%emt 0:00:04]} Kb7 {[%emt 0:00:32]} 48. Rb5 {[%emt 0:00:02]} Rxb5 {[%emt 0:00:48]} 49. cxb5 {[%emt 0:00:31] KB-KB} Kb6 {[%emt 0:00:33]} 50. g4 {[%emt 0:00:19]} Kc5 {[%emt 0:02:19]} 51. gxf5 {[%emt 0:00:19]} gxf5 {[%emt 0:00:07]} 52. Ke2 {[%emt 0:00:05]} Kd4 {[%emt 0:00:25]} 53. Kf3 {[%emt 0:00:01]} Ke5 {[%emt 0:00:08]} 54. h4 {[%emt 0:00:14]} Kf6 {[%emt 0:00:19]} 55. h5 {[%emt 0:00:03]} Kg5 {[%emt 0:00:08]} (55... h6 $15) 56. Be8 $1 {[%emt 0:00:01] The position is equal.} Bb6 {[%emt 0:00:59]} 57. Kg3 {[%emt 0:00:08]} Ba5 {[%emt 0:01:13]} 58. Kf3 {[%emt 0:00:04]} Kf6 {[%emt 0:00:04]} 59. Bf7 {[%emt 0:00:06]} Ke5 {[%emt 0:00:38]} 60. Ke3 {[%emt 0:00:25]} Bc7 {[%emt 0:01:22]} 61. Kf3 {[%emt 0:00:03]} h6 {[%emt 0:00:40]} 62. Ke3 {[%emt 0:00:07]} Kd5 {[%emt 0:00:08]} 63. Kf3 {[%emt 0:00:11]} Ke5 {[%emt 0:01:02]} 64. Ke3 {[%emt 0:00:04]} Kd5 {[%emt 0:00:12]} 65. Kf3 {[%emt 0:00:02]} Ke5 {[%emt 0:00:09]} 66. Ke3 {[%emt 0:00:42] Weighted Error Value: White=0.21 (precise) /Black=0.24 (precise) .  Loses game:     	---       	Black=1      Missed win:     	White=1     	---        Mistake:       	White=7     	Black=7      Inaccurate:     	White=2     	Black=3      OK:         	White=21    	Black=18     Best:        	White=3     	Black=2      Strong:       	White=2     	---        Brilliant:      	---       	Black=1} 1/2-1/2

[Event "4NCL Div 1 2024-25"]
[Site "England"]
[Date "2024.11.24"]
[Round "2.28"]
[White "Czopor, Maciej"]
[Black "Berry, Neil"]
[Result "1-0"]
[Annotator "TA"]
[ECO "A13"]
[WhiteElo "2383"]
[BlackElo "2248"]
[PlyCount "101"]
[EventDate "2024.11.23"]
[EventType "team-tourn"]
[EventCountry "ENG"]
[SourceTitle "playchess.com"]
[Source "ChessBase"]
[SourceQuality "1"]
[TimeControl "40/6000+30:3000+30"]

{[%evp 9,101,8,25,25,20,22,21,14,35,18,22,10,3,14,26,9,18,-10,0,0,0,-14,0,-39,0,0,0,12,10,7,0,0,15,-91,84,78,75,73,83,82,72,62,87,85,144,164,172,170,148,147,142,18,18,14,20,13,15,13,16,13,14,17,20,26,27,31,206,199,214,209,243,242,245,254,256,254,260,261,255,249,280,281,264,302,311,304,301,321,295,278,330,327,445,443]} 1. c4 {[%emt 0:10:03]} e6 {[%emt 0:10:40]} 2. Nf3 {[%emt 0:00:07]} d5 {[%emt 0:00:21]} 3. g3 {[%emt 0:00:04]} Nf6 {[%emt 0:00:40]} 4. Bg2 {[%emt 0:00:41]} d4 {[%emt 0:02:17]} 5. O-O {[%emt 0:00:12]} Be7 {[%emt 0:00:28] [#]} 6. b4 $1 {[%emt 0:00:05]} O-O {[%emt 0:07:54]} 7. Bb2 {[%emt 0:01:11]} c5 {[%emt 0:01:38]} 8. d3 {[%emt 0:00:03]} Nbd7 {[%emt 0:05:41]} 9. bxc5 {[%emt 0:03:07]} e5 {[%emt 0:00:53][%cal Of8e8]} 10. Nbd2 {[%emt 0:06:41]} Bxc5 {[%emt 0:04:46]} 11. Nb3 {[%emt 0:00:11]} Re8 {[%emt 0:01:45]} 12. Rb1 {[%emt 0:02:38][%cal Oe2e3]} Bf8 {[%emt 0:04:02]} 13. Qc2 {[%emt 0:08:34]} a5 {[%emt 0:02:38][%cal Ba7a5,Ba5a4][%mdl 32]} 14. Rfe1 {[%emt 0:16:12]} a4 {[%emt 0:07:53]} 15. Nbd2 {[%emt 0:00:03]} Nc5 {[%emt 0:15:36]} 16. Ng5 {[%emt 0:06:10]} Bd7 {[%emt 0:06:05]} (16... a3 $15 17. Bc1 Qa5) 17. Ba3 $11 {[%emt 0:04:39][%cal Oa3c5]} Bc6 {[%emt 0:03:44]} 18. Bxc5 {[%emt 0:01:02]} Bxc5 {[%emt 0:00:08]} 19. Bxc6 {[%emt 0:03:50]} bxc6 {[%emt 0:00:07]} 20. Rb7 {[%emt 0:00:12]} Nd7 {[%emt 0:03:51]} 21. Nge4 {[%emt 0:05:27]} (21. Nde4 $11 Bf8 22. c5 Nxc5 (22... h6 23. Nf3 $17) 23. Nxc5 (23. Nxf7 Qa5 $11) 23... Qxg5 24. Nxa4) 21... Bf8 $2 {[%emt 0:01:05]} (21... f5 $17 {Hoping for ...Bf8.} 22. Rxd7 Qxd7 23. Nxc5 Qe7 (23... Qa7 24. Nce4 $17)) 22. c5 $16 {[%emt 0:00:42] White is much more active.} Nf6 {[%emt 0:06:39]} 23. Nxf6+ {[%emt 0:01:34]} Qxf6 {[%emt 0:00:08]} 24. Reb1 $36 {[%emt 0:01:13][%mdl 2048] White is on the roll.} Qe6 {[%emt 0:01:21]} 25. R1b4 {[%emt 0:03:16]} Qd5 {[%emt 0:01:15]} 26. Rxa4 {[%emt 0:01:45]} Rxa4 {[%emt 0:01:19]} (26... Qxc5 $142 27. Qb3 (27. Qxc5 Bxc5 28. Rxa8 Rxa8 $16) 27... Qd5) 27. Qxa4 {[%emt 0:00:06]} Qxc5 {[%emt 0:00:14]} 28. Qc4 {[%emt 0:04:16]} Qd5 {[%emt 0:04:25]} 29. a4 {[%emt 0:01:18]} Ra8 {[%emt 0:00:51]} 30. Rc7 {[%emt 0:02:21]} ({Better is} 30. Qc2 $16) 30... Qxc4 $11 {[%emt 0:03:52]} 31. Nxc4 {[%emt 0:00:06][%mdl 4096] Endgame Threatens to win with Nb6. KRB-KRN} f6 $1 {[%emt 0:03:20]} 32. Nb6 {[%emt 0:07:19]} ({Don't play} 32. Rxc6 Rxa4 33. Kg2 Ra2 $16) 32... Ra6 {[%emt 0:01:05]} 33. Rxc6 {[%emt 0:00:04]} Kf7 {[%emt 0:00:33]} 34. Rc7+ {[%emt 0:00:09][%cal Bc6c7,Bc7b7,Bb7b6][%mdl 32]} Kg6 {[%emt 0:01:17]} 35. Rb7 {[%emt 0:00:55]} Bc5 {[%emt 0:04:50]} 36. Nd7 {[%emt 0:00:07]} Ba3 $1 {[%emt 0:02:04]} 37. Rb6 {[%emt 0:00:14]} Rxa4 $2 {[%emt 0:01:02]} (37... Ra5 $1 $14) 38. Nxe5+ $18 {[%emt 0:00:05]} Kf5 {[%emt 0:00:45]} 39. Nc4 {[%emt 0:00:25]} Bb4 {[%emt 0:00:59]} 40. Kg2 {[%emt 0:01:01]} Bc3 {[%emt 0:00:43]} 41. Rb7 {[%emt 0:50:30]} Kg6 {[%emt 0:21:59]} 42. g4 {[%emt 0:00:00]} Ra6 {[%emt 0:08:37]} 43. Rd7 {[%emt 0:00:00]} Re6 {[%emt 0:02:29]} 44. Kf3 {[%emt 0:00:00]} h5 {[%emt 0:02:59]} 45. gxh5+ {[%emt 0:00:00]} Kh6 {[%emt 0:00:48]} 46. Rd5 {[%emt 0:00:00]} Bb4 {[%emt 0:03:42]} 47. Rxd4 {[%emt 0:00:00]} Kxh5 {[%emt 0:00:10]} 48. Ne3 {[%emt 0:00:00]} Bf8 {[%emt 0:02:08]} 49. Rd8 {[%emt 0:00:00]} Bb4 {[%emt 0:01:19]} 50. Nf5 {[%emt 0:00:00]} Kg6 {[%emt 0:01:02]} 51. e4 {[%emt 0:00:00]} 1-0

[Event "4NCL Div 1 2024-25"]
[Site "England"]
[Date "2024.11.24"]
[Round "2.29"]
[White "Swanson, Stephen"]
[Black "O`Donnell, Conor"]
[Result "0-1"]
[Annotator "RC"]
[ECO "B13"]
[WhiteElo "2143"]
[BlackElo "2293"]
[PlyCount "94"]
[EventDate "2024.11.23"]
[EventType "team-tourn"]
[EventCountry "ENG"]
[SourceTitle "playchess.com"]
[Source "ChessBase"]
[SourceQuality "1"]
[TimeControl "40/6000+30:3000+30"]

1. e4 {[%emt 0:10:01]} c6 {[%emt 0:14:08]} 2. d4 {[%emt 0:00:41]} d5 {[%emt 0:00:13]} 3. exd5 {[%emt 0:00:06]} cxd5 {[%emt 0:00:08]} 4. Bd3 {[%emt 0:00:07]} Nc6 {[%emt 0:00:15]} 5. c3 {[%emt 0:00:09]} Nf6 {[%emt 0:00:40]} 6. f4 {[%emt 0:00:10]} g6 {[%emt 0:06:05]} 7. Nf3 {[%emt 0:01:14]} Bf5 {[%emt 0:07:44]} 8. Be2 {[%emt 0:00:32]} Bg7 {[%emt 0:04:29]} 9. O-O {[%emt 0:00:37]} Ne4 {[%emt 0:03:38]} 10. Be3 {[%emt 0:07:14]} O-O {[%emt 0:03:40]} 11. Nbd2 {[%emt 0:04:12]} Rb8 {[%emt 0:09:03]} 12. Rc1 {[%emt 0:16:56]} Qd7 {[%emt 0:17:24]} 13. Qe1 {[%emt 0:10:20]} Nxd2 {[%emt 0:08:45]} 14. Qxd2 {[%emt 0:09:33]} b5 {[%emt 0:01:31]} 15. b3 {[%emt 0:07:28]} Rfd8 {[%emt 0:02:52]} 16. Rfd1 {[%emt 0:01:39]} Bg4 {[%emt 0:03:29]} 17. Ne5 {[%emt 0:05:13]} Nxe5 {[%emt 0:00:12]} 18. fxe5 {[%emt 0:03:21]} Rdc8 {[%emt 0:02:51]} 19. Rf1 {[%emt 0:03:13]} Be6 {[%emt 0:01:44]} 20. Bh6 {[%emt 0:05:22]} Rc7 {[%emt 0:03:27]} 21. Bxg7 {[%emt 0:02:18]} Kxg7 {[%emt 0:00:02]} 22. Rf4 {[%emt 0:00:13]} Rh8 {[%emt 0:04:10]} 23. Rcf1 {[%emt 0:03:50]} h5 {[%emt 0:00:31]} 24. Qe3 {[%emt 0:01:59]} Qc6 {[%emt 0:02:30]} 25. Qf2 {[%emt 0:01:35]} Qxc3 {[%emt 0:04:15]} 26. Bxb5 {[%emt 0:03:01]} Qc2 {[%emt 0:02:35]} 27. Qxc2 {[%emt 0:03:18]} Rxc2 {[%emt 0:00:02]} 28. R4f2 {[%emt 0:00:10]} Rc7 {[%emt 0:02:26]} 29. Bd3 {[%emt 0:00:46]} Rc3 {[%emt 0:00:41]} 30. Rd2 {[%emt 0:00:45]} Rb8 {[%emt 0:00:55]} 31. Kf2 {[%emt 0:01:53]} a5 {[%emt 0:01:19]} 32. Rfd1 {[%emt 0:02:09]} Rbc8 {[%emt 0:02:46]} 33. h3 {[%emt 0:00:24]} h4 {[%emt 0:00:37]} 34. Bb1 {[%emt 0:01:35]} Kh6 {[%emt 0:00:38]} 35. Rd3 {[%emt 0:00:46]} Rc1 {[%emt 0:00:11]} 36. R3d2 {[%emt 0:00:22]} R1c3 {[%emt 0:00:44]} 37. Rd3 {[%emt 0:00:17]} Bf5 {[%emt 0:01:22]} 38. R3d2 {[%emt 0:03:19]} Kg5 {[%emt 0:00:05]} 39. Bxf5 {[%emt 0:01:47]} gxf5 {[%emt 0:00:16]} 40. Re1 {[%emt 0:01:01]} f4 {[%emt 0:01:35]} 41. Red1 {[%emt 0:22:41]} Kf5 {[%emt 0:22:51]} 42. Rb1 {[%emt 0:05:03]} Rb8 {[%emt 0:04:44]} 43. Rbb2 {[%emt 0:03:52]} Ke4 {[%emt 0:01:30]} 44. Rd1 {[%emt 0:01:17]} Rg8 {[%emt 0:02:35]} 45. b4 {[%emt 0:08:23]} axb4 {[%emt 0:01:20]} 46. Re1+ {[%emt 0:02:43]} Re3 {[%emt 0:05:54]} 47. Rd1 {[%emt 0:05:27]} f3 {[%emt 0:01:35]} 0-1

[Event "4NCL Div 1 2024-25"]
[Site "England"]
[Date "2024.11.24"]
[Round "2.30"]
[White "Derakhshani, Borna"]
[Black "Shafi, Declan"]
[Result "1/2-1/2"]
[Annotator "TA"]
[ECO "C91"]
[WhiteElo "2355"]
[BlackElo "2181"]
[PlyCount "31"]
[EventDate "2024.11.23"]
[EventType "team-tourn"]
[EventCountry "ENG"]
[SourceTitle "playchess.com"]
[Source "ChessBase"]
[SourceQuality "1"]
[TimeControl "40/6000+30:3000+30"]

{[%evp 26,31,-7,-15,-16,-12,-3,-35]} 1. e4 {[%emt 0:11:36]} e5 {[%emt 0:10:03]} 2. Nf3 {[%emt 0:00:14]} Nc6 {[%emt 0:00:05]} 3. Bb5 {[%emt 0:00:03][%cal Bf1b5,Bb5a4,Ba4b3][%mdl 32]} a6 {[%emt 0:00:05]} 4. Ba4 {[%emt 0:00:03]} Nf6 {[%emt 0:00:05]} 5. O-O {[%emt 0:00:04]} Be7 {[%emt 0:00:04]} 6. Re1 {[%emt 0:00:09]} b5 {[%emt 0:00:11]} 7. Bb3 {[%emt 0:00:04]} d6 {[%emt 0:00:04]} 8. c3 {[%emt 0:00:05]} O-O {[%emt 0:00:09]} 9. d4 {[%emt 0:00:04][%cal Bd2d4,Bd4d5][%mdl 32]} Bg4 {[%emt 0:02:25]} 10. d5 {[%emt 0:00:11]} Na5 {[%emt 0:00:23]} 11. Bc2 {[%emt 0:00:08]} c6 {[%emt 0:00:16]} 12. h3 {[%emt 0:02:26]} Bc8 {[%emt 0:00:09]} 13. dxc6 {[%emt 0:02:14]} Qc7 {[%emt 0:00:06]} 14. a4 {[%emt 0:05:26] Strongly threatening axb5.} Qxc6 {[%emt 0:02:18]} 15. axb5 {[%emt 0:00:30]} axb5 {[%emt 0:00:22]} 16. Nbd2 {[%emt 0:10:29]} 1/2-1/2